fUST/lending_fUST_20240812
["ID","MTS","AMOUNT","RATE_DAILY","PERIOD"]
[334688641,1723474240897,-500.0,0.00020821,3]
[334688642,1723474240906,-506.07076068,0.00020821,3]
[334688643,1723474240916,-582.43,0.00020821,3]
[334688644,1723474240931,-629.27268015,0.00020821,3]
[334688645,1723474240941,-806.87,0.00020821,3]
[334688646,1723474240951,-500.0,0.00020821,3]
[334688647,1723474240961,-500.0,0.00020821,3]
[334688648,1723474240970,-500.0,0.00020821,3]
[334688649,1723474240980,-500.0,0.00020821,3]
[334688650,1723474240989,-500.0,0.00020821,3]
[334688651,1723474240999,-500.0,0.00020821,3]
[334688652,1723474241010,-500.0,0.00020821,3]
[334688653,1723474241021,-500.0,0.00020821,3]
[334688654,1723474241031,-501.49390567,0.00020821,3]
[334688655,1723474241041,-500.0,0.00020821,3]
[334688656,1723474241051,-500.0,0.00020821,3]
[334688657,1723474241061,-500.0,0.00020821,3]
[334688658,1723474241071,-500.0,0.00020821,3]
[334688659,1723474241081,-297.51445606,0.00020821,3]
[334688660,1723474241091,-500.0,0.00020821,3]
[334688661,1723474241101,-325.65215929,0.00020821,3]
[334688662,1723474241110,-506.35734936,0.00020821,3]
[334688663,1723474241120,-200.67872286,0.00020821,3]
[334688664,1723474241130,-500.0,0.00020821,3]
[334688665,1723474241140,-500.0,0.00020821,3]
[334688666,1723474241150,-500.0,0.00020821,3]
[334688667,1723474241159,-500.0,0.00020821,3]
[334688668,1723474241169,-500.0,0.00020821,3]
[334688669,1723474241188,-924.51,0.00020821,3]
[334688670,1723474241199,-500.0,0.00020821,3]
[334688671,1723474241208,-500.0,0.00020821,3]
[334688672,1723474241218,-500.0,0.00020821,3]
[334688673,1723474241229,-500.0,0.00020821,3]
[334688674,1723474241238,-500.0,0.00020821,3]
[334688675,1723474241248,-500.0,0.00020821,3]
[334688676,1723474241258,-500.0,0.00020821,3]
[334688677,1723474241267,-500.0,0.00020821,3]
[334688678,1723474241277,-500.0,0.00020821,3]
[334688679,1723474241287,-500.0,0.00020821,3]
[334688680,1723474241297,-1124.43,0.00020821,3]
[334688681,1723474241306,-500.0,0.00020821,3]
[334688682,1723474241316,-503.09570099,0.00020821,3]
[334688683,1723474241326,-500.0,0.00020821,3]
[334688684,1723474241337,-500.0,0.00020821,3]
[334688685,1723474241350,-500.0,0.00020821,3]
[334688686,1723474241359,-504.70552119,0.00020821,3]
[334688687,1723474241369,-500.0,0.00020821,3]
[334688688,1723474241378,-204.43492489,0.00020821,3]
[334688689,1723474241388,-503.79529579,0.00020821,3]
[334688690,1723474241398,-500.0,0.00020821,2]
[334688691,1723474241407,-500.0,0.00020821,3]
[334688692,1723474241418,-178.82382,0.00020821,2]
[334688693,1723474241434,-500.0,0.00020821,3]
[334688694,1723474241444,-178.82382,0.00020821,2]
[334688695,1723474241453,-500.0,0.00020821,3]
[334688696,1723474241462,-521.35811534,0.00020821,3]
[334688697,1723474241471,-500.0,0.00020821,3]
[334688698,1723474241480,-500.0,0.00020821,3]
[334688699,1723474241489,-178.82382,0.00020821,2]
[334688700,1723474241498,-178.82382,0.00020821,2]
[334688701,1723474241508,-500.0,0.00020821,3]
[334688702,1723474241517,-153.098448,0.00020821,2]
[334688703,1723474241527,-500.0,0.00020821,3]
[334688704,1723474241536,-500.0,0.00020821,3]
[334688705,1723474241545,-1287.82,0.00020821,3]
[334688706,1723474241555,-469.7200934,0.00020821,3]
[334688707,1723474241568,-500.0,0.00020821,3]
[334688708,1723474241578,-500.0,0.00020821,3]
[334688709,1723474241588,-500.0,0.00020821,3]
[334688710,1723474241598,-287.72694153,0.00020821,3]
[334688711,1723474241608,-415.02991626,0.00020821,3]
[334688712,1723474241620,-500.0,0.00020821,3]
[334688713,1723474241631,-157.855426,0.00020821,2]
[334688714,1723474241642,-500.0,0.00020821,3]
[334688715,1723474241653,-500.0,0.00020821,3]
[334688716,1723474241666,-500.0,0.00020821,3]
[334688717,1723474241677,-949.68,0.00020821,3]
[334688718,1723474241692,-500.0,0.00020821,3]
[334688719,1723474241702,-500.0,0.00020821,3]
[334688720,1723474241712,-500.0,0.00020821,3]
[334688721,1723474241723,-500.0,0.00020821,3]
[334688722,1723474241735,-500.0,0.00020821,3]
[334688723,1723474241745,-500.0,0.00020821,3]
[334688724,1723474241756,-500.0,0.00020821,3]
[334688725,1723474241766,-509.47072103,0.00020821,3]
[334688726,1723474241776,-500.0,0.00020821,3]
[334688727,1723474241787,-500.0,0.00020821,3]
[334688728,1723474241796,-500.0,0.00020821,3]
[334688729,1723474241806,-535.90743817,0.00020821,3]
[334688730,1723474241817,-500.0,0.00020821,3]
[334688731,1723474241827,-500.0,0.00020821,3]
[334688732,1723474241838,-500.0,0.00020821,3]
[334688733,1723474241848,-500.0,0.00020821,3]
[334688734,1723474241858,-500.0,0.00020821,3]
[334688735,1723474241868,-783.07,0.00020821,3]
[334688736,1723474241878,-358.443465,0.00020821,2]
[334688737,1723474241887,-503.17224724,0.00020821,3]
[334688738,1723474241898,-500.0,0.00020821,3]
[334688739,1723474241907,-358.443465,0.00020821,2]
[334688740,1723474241918,-358.443465,0.00020821,2]
[334688741,1723474241932,-358.443465,0.00020821,2]
[334688742,1723474241942,-500.0,0.00020821,3]
[334688743,1723474241954,-500.0,0.00020821,3]
[334688744,1723474241964,-520.78045696,0.00020821,3]
[334688745,1723474241973,-500.0,0.00020821,3]
[334688746,1723474241983,-500.0,0.00020821,3]
[334688747,1723474241992,-500.0,0.00020821,3]
[334688748,1723474242002,-500.0,0.00020821,3]
[334688749,1723474242011,-950.71,0.00020821,3]
[334688750,1723474242024,-500.0,0.00020821,3]
[334688751,1723474242034,-500.0,0.00020821,3]
[334688752,1723474242045,-500.0,0.00020821,3]
[334688753,1723474242058,-500.0,0.00020821,3]
[334688754,1723474242068,-500.0,0.00020821,3]
[334688755,1723474242077,-151.0,0.00020821,2]
[334688756,1723474242090,-991.28,0.00020821,3]
[334688757,1723474242100,-500.0,0.00020821,3]
[334688758,1723474242109,-500.0,0.00020821,3]
[334688759,1723474242121,-500.0,0.00020821,3]
[334688760,1723474242132,-500.0,0.00020821,3]
[334688761,1723474242142,-500.0,0.00020821,3]
[334688762,1723474242153,-500.0,0.00020821,3]
[334688763,1723474242164,-500.0,0.00020821,3]
[334688764,1723474242174,-500.0,0.00020821,3]
[334688765,1723474242188,-504.78252744,0.00020821,3]
[334688766,1723474242197,-501.52233401,0.00020821,3]
[334688767,1723474242207,-512.19781729,0.00020821,3]
[334688768,1723474242217,-500.0,0.00020821,3]
[334688769,1723474242227,-500.0,0.00020821,3]
[334688770,1723474242238,-875.88,0.00020821,3]
[334688771,1723474242249,-500.0,0.00020821,3]
[334688772,1723474242260,-500.0,0.00020821,3]
[334688773,1723474242270,-500.0,0.00020821,3]
[334688774,1723474242280,-552.98054679,0.00020821,3]
[334688775,1723474242289,-151.0,0.00020821,2]
[334688776,1723474242298,-500.0,0.00020821,3]
[334688777,1723474242307,-500.0,0.00020821,3]
[334688778,1723474242317,-500.0,0.00020821,3]
[334688779,1723474242327,-500.0,0.00020821,3]
[334688780,1723474242336,-503.41653541,0.00020821,3]
[334688781,1723474242348,-500.0,0.00020821,3]
[334688782,1723474242358,-500.0,0.00020821,3]
[334688783,1723474242367,-887.8,0.00020821,3]
[334688784,1723474242377,-397.59555,0.00020821,2]
[334688785,1723474242387,-508.83425662,0.00020821,3]
[334688786,1723474242397,-235.316128,0.00020821,2]
[334688787,1723474242408,-500.0,0.00020821,3]
[334688788,1723474242419,-500.0,0.00020821,3]
[334688789,1723474242437,-397.59555,0.00020821,2]
[334688790,1723474242448,-235.316128,0.00020821,2]
[334688791,1723474242458,-1057.48,0.00020821,3]
[334688792,1723474242468,-500.0,0.00020821,3]
[334688793,1723474242478,-151.72358,0.00020821,2]
[334688794,1723474242488,-500.0,0.00020821,3]
[334688795,1723474242498,-500.0,0.00020821,3]
[334688796,1723474242508,-500.0,0.00020821,3]
[334688797,1723474242519,-500.0,0.00020821,3]
[334688798,1723474242528,-500.0,0.00020821,3]
[334688799,1723474242538,-500.0,0.00020821,3]
[334688800,1723474242548,-500.0,0.00020821,3]
[334688801,1723474242558,-701.33,0.00020821,3]
[334688802,1723474242569,-512.68322596,0.00020821,3]
[334688803,1723474242579,-500.0,0.00020821,3]
[334688804,1723474242589,-500.0,0.00020821,3]
[334688805,1723474242599,-500.0,0.00020821,3]
[334688806,1723474242609,-502.6501975,0.00020821,3]
[334688807,1723474242619,-500.0,0.00020821,3]
[334688808,1723474242629,-503.67086892,0.00020821,3]
[334688809,1723474242639,-801.9,0.00020821,3]
[334688810,1723474242649,-500.0,0.00020821,3]
[334688811,1723474242659,-500.0,0.00020821,3]
[334688812,1723474242669,-504.21239175,0.00020821,3]
[334688813,1723474242682,-1494.75,0.00020821,3]
[334688814,1723474242692,-555.5,0.00020821,3]
[334688815,1723474242702,-502.38200505,0.00020821,3]
[334688816,1723474242711,-500.0,0.00020821,3]
[334688817,1723474242720,-500.0,0.00020821,3]
[334688818,1723474242729,-508.82790382,0.00020821,3]
[334688819,1723474242739,-501.98845617,0.00020821,3]
[334688820,1723474242748,-506.19468139,0.00020821,3]
[334688821,1723474242758,-504.68628775,0.00020821,3]
[334688822,1723474242767,-600.04,0.00020821,3]
[334688823,1723474242777,-500.0,0.00020821,3]
[334688824,1723474242787,-557.37,0.00020821,3]
[334688825,1723474242797,-560.17,0.00020821,3]
[334688826,1723474242807,-509.59232505,0.00020821,3]
[334688827,1723474242817,-500.0,0.00020821,3]
[334688828,1723474242827,-500.0,0.00020821,3]
[334688829,1723474242840,-772.32,0.00020821,3]
[334688830,1723474242850,-699.43,0.00020821,3]
[334688831,1723474242862,-1254.45,0.00020821,3]
[334688832,1723474242872,-500.0,0.00020821,3]
[334688833,1723474242882,-500.0,0.00020821,3]
[334688834,1723474242892,-500.0,0.00020821,3]
[334688835,1723474242902,-505.87900514,0.00020821,3]
[334688836,1723474242912,-500.0,0.00020821,3]
[334688837,1723474242937,-1307.89,0.00020821,3]
[334688838,1723474242950,-584.21,0.00020821,3]
[334688839,1723474242961,-500.0,0.00020821,3]
[334688840,1723474242971,-509.39676028,0.00020821,3]
[334688841,1723474242982,-500.0,0.00020821,3]
[334688842,1723474242992,-1949.88,0.00020821,3]
[334688843,1723474243002,-152.797487,0.00020821,2]
[334688844,1723474243013,-500.0,0.00020821,3]
[334688845,1723474243022,-503.3674401,0.00020821,3]
[334688846,1723474243032,-503.32399465,0.00020821,3]
[334688847,1723474243042,-499.99855932,0.00020821,3]
[334688848,1723474243052,-733.21,0.00020821,3]
[334688849,1723474243062,-500.0,0.00020821,3]
[334688850,1723474243071,-422.79778272,0.00020821,3]
[334688851,1723474243081,-572.62,0.00020821,3]
[334688852,1723474243092,-500.0,0.00020821,3]
[334688853,1723474243101,-501.4743432,0.00020821,3]
[334688854,1723474243111,-513.72,0.00020821,3]
[334688855,1723474243120,-500.0,0.00020821,3]
[334688856,1723474243130,-500.0,0.00020821,3]
[334688857,1723474243140,-500.0,0.00020821,3]
[334688858,1723474243150,-151.0,0.00020821,2]
[334688859,1723474243159,-151.0,0.00020821,2]
[334688860,1723474243170,-500.0,0.00020821,3]
[334688861,1723474243184,-500.0,0.00020821,3]
[334688862,1723474243194,-500.0,0.00020821,3]
[334688863,1723474243204,-500.0,0.00020821,3]
[334688864,1723474243214,-500.0,0.00020821,3]
[334688886,1723474243406,-500.0,0.00020821,3]
[334688888,1723474243416,-502.36932696,0.00020821,3]
[334688890,1723474243430,-530.38,0.00020821,3]
[334688892,1723474243441,-151.0,0.00020821,2]
[334688894,1723474243451,-151.0,0.00020821,2]
[334688897,1723474243461,-1426.58,0.00020821,3]
[334688900,1723474243471,-508.3166345,0.00020821,3]
[334688901,1723474243480,-500.0,0.00020821,3]
[334688902,1723474243490,-502.68630497,0.00020821,3]
[334688903,1723474243501,-500.0,0.00020821,3]
[334688904,1723474243510,-638.85,0.00020821,3]
[334688905,1723474243520,-500.0,0.00020821,3]
[334688906,1723474243530,-500.0,0.00020821,3]
[334688907,1723474243540,-500.0,0.00020821,3]
[334688908,1723474243550,-633.233759,0.00020821,2]
[334688909,1723474243560,-633.233759,0.00020821,2]
[334688910,1723474243570,-886.91,0.00020821,3]
[334688911,1723474243580,-500.0,0.00020821,3]
[334688912,1723474243590,-633.233759,0.00020821,2]
[334688914,1723474243600,-633.233759,0.00020821,2]
[334688915,1723474243610,-500.0,0.00020821,3]
[334688916,1723474243622,-500.0,0.00020821,3]
[334688917,1723474243632,-538.62229691,0.00020821,3]
[334688918,1723474243642,-151.0,0.00020821,2]
[334688919,1723474243652,-151.0,0.00020821,2]
[334688920,1723474243663,-500.0,0.00020821,3]
[334688921,1723474243673,-151.0,0.00020821,2]
[334688922,1723474243692,-500.0,0.00020821,3]
[334688923,1723474243702,-287.283186,0.00020821,2]
[334688924,1723474243712,-1004.82,0.00020821,3]
[334688925,1723474243721,-500.0,0.00020821,3]
[334688926,1723474243732,-504.02234705,0.00020821,3]
[334688927,1723474243743,-504.83163467,0.00020821,3]
[334688928,1723474243753,-151.0,0.00020821,2]
[334688929,1723474243764,-1179.21,0.00020821,3]
[334688930,1723474243773,-151.0,0.00020821,2]
[334688931,1723474243782,-156.180285,0.00020821,2]
[334688932,1723474243792,-1366.44,0.00020821,3]
[334688933,1723474243802,-616.93,0.00020821,3]
[334688934,1723474243812,-503.80031897,0.00020821,3]
[334688935,1723474243822,-500.0,0.00020821,3]
[334688936,1723474243831,-583.63,0.00020821,3]
[334688937,1723474243841,-6162.92,0.00020821,3]
[334688938,1723474243851,-1309.63,0.00020821,3]
[334688939,1723474243860,-5766.44,0.00020821,3]
[334688940,1723474243870,-151.0,0.00020821,2]
[334688941,1723474243879,-151.0,0.00020821,2]
[334688942,1723474243890,-2065.98,0.00020821,3]
[334688943,1723474243900,-503.24843815,0.00020821,3]
[334688944,1723474243909,-151.0,0.00020821,2]
[334688945,1723474243919,-500.0,0.00020821,3]
[334688946,1723474243935,-1965.19,0.00020821,3]
[334688947,1723474243948,-500.0,0.00020821,3]
[334688948,1723474243959,-500.0,0.00020821,3]
[334688949,1723474243969,-506.13000869,0.00020821,3]
[334688950,1723474243979,-501.68433035,0.00020821,3]
[334688951,1723474243988,-500.0,0.00020821,3]
[334688952,1723474243997,-500.0,0.00020821,3]
[334688953,1723474244006,-500.0,0.00020821,3]
[334688954,1723474244016,-700.2,0.00020821,3]
[334688955,1723474244026,-500.0,0.00020821,3]
[334688956,1723474244035,-504.90175956,0.00020821,3]
[334688957,1723474244045,-1453.74,0.00020821,3]
[334688958,1723474244055,-506.98815353,0.00020821,3]
[334688960,1723474244064,-500.0,0.00020821,3]
[334688961,1723474244073,-546.69468098,0.00020821,3]
[334688962,1723474244083,-1702.88,0.00020821,3]
[334688963,1723474244092,-500.0,0.00020821,3]
[334688964,1723474244102,-503.04790354,0.00020821,3]
[334688965,1723474244112,-500.73988775,0.00020821,3]
[334688966,1723474244121,-500.0,0.00020821,3]
[334688967,1723474244130,-500.0,0.00020821,3]
[334688968,1723474244140,-500.0,0.00020821,3]
[334688969,1723474244149,-885.02,0.00020821,3]
[334688970,1723474244158,-500.0,0.00020821,2]
[334688971,1723474244168,-2002.36,0.00020821,3]
[334688972,1723474244178,-500.0,0.00020821,3]
[334688973,1723474244194,-500.0,0.00020821,3]
[334688974,1723474244207,-500.0,0.00020821,3]
[334688975,1723474244219,-791.99,0.00020821,3]
[334688976,1723474244230,-972.98,0.00020821,3]
[334688977,1723474244239,-500.0,0.00020821,3]
[334688978,1723474244250,-513.66216797,0.00020821,3]
[334688980,1723474244259,-500.0,0.00020821,3]
[334688982,1723474244270,-520.15882396,0.00020821,3]
[334688983,1723474244281,-6385.81,0.00020821,3]
[334688985,1723474244292,-500.0,0.00020821,3]
[334688986,1723474244301,-500.0,0.00020821,3]
[334688987,1723474244311,-500.0,0.00020821,3]
[334688988,1723474244322,-1586.43,0.00020821,3]
[334688990,1723474244334,-1940.05,0.00020821,3]
[334688992,1723474244346,-500.0,0.00020821,3]
[334688994,1723474244356,-502.78650335,0.00020821,3]
[334688996,1723474244366,-500.0,0.00020821,3]
[334688998,1723474244376,-504.17183432,0.00020821,3]
[334689000,1723474244388,-661.49,0.00020821,3]
[334689002,1723474244397,-200.0,0.00020821,3]
[334689004,1723474244408,-505.18072017,0.00020821,3]
[334689005,1723474244420,-178.58257224,0.00020821,3]
[334689006,1723474244437,-500.0,0.00020821,3]
[334689007,1723474244449,-500.0,0.00020821,3]
[334689008,1723474244459,-500.0,0.00020821,3]
[334689009,1723474244470,-500.0,0.00020821,3]
[334689010,1723474244479,-2282.01,0.00020821,3]
[334689011,1723474244489,-500.0,0.00020821,3]
[334689012,1723474244499,-500.0,0.00020821,3]
[334689013,1723474244508,-500.0,0.00020821,3]
[334689014,1723474244518,-500.0,0.00020821,3]
[334689015,1723474244529,-500.0,0.00020821,3]
[334689016,1723474244539,-151.0,0.00020821,2]
[334689017,1723474244550,-1181.89,0.00020821,3]
[334689018,1723474244560,-500.0,0.00020821,3]
[334689019,1723474244569,-151.0,0.00020821,2]
[334689020,1723474244578,-500.0,0.00020821,3]
[334689021,1723474244589,-500.0,0.00020821,3]
[334689022,1723474244599,-151.0,0.00020821,2]
[334689023,1723474244608,-500.0,0.00020821,3]
[334689024,1723474244618,-500.0,0.00020821,3]
[334689025,1723474244628,-500.0,0.00020821,3]
[334689026,1723474244638,-500.0,0.00020821,3]
[334689027,1723474244647,-500.0,0.00020821,3]
[334689028,1723474244657,-413.764054,0.00020821,2]
[334689029,1723474244666,-500.0,0.00020821,3]
[334689030,1723474244675,-500.0,0.00020821,3]
[334689031,1723474244691,-413.764054,0.00020821,2]
[334689032,1723474244700,-500.0,0.00020821,3]
[334689033,1723474244711,-413.764054,0.00020821,2]
[334689034,1723474244720,-500.0,0.00020821,3]
[334689035,1723474244731,-500.0,0.00020821,3]
[334689036,1723474244741,-500.0,0.00020821,3]
[334689037,1723474244751,-500.0,0.00020821,3]
[334689038,1723474244762,-500.0,0.00020821,3]
[334689039,1723474244772,-671.67,0.00020821,3]
[334689040,1723474244782,-500.0,0.00020821,3]
[334689041,1723474244793,-500.0,0.00020821,3]
[334689042,1723474244803,-693.74,0.00020821,3]
[334689043,1723474244813,-500.0,0.00020821,3]
[334689044,1723474244823,-500.0,0.00020821,3]
[334689045,1723474244833,-413.764054,0.00020821,2]
[334689046,1723474244843,-530.14742153,0.00020821,3]
[334689047,1723474244853,-413.764054,0.00020821,2]
[334689048,1723474244862,-413.764054,0.00020821,2]
[334689049,1723474244874,-500.0,0.00020821,3]
[334689050,1723474244884,-678.74,0.00020821,3]
[334689051,1723474244894,-7660.85,0.00020821,3]
[334689052,1723474244904,-502.64746291,0.00020821,3]
[334689053,1723474244913,-500.0,0.00020821,3]
[334689054,1723474244926,-500.0,0.00020821,3]
[334689055,1723474244940,-151.0,0.00020821,2]
[334689056,1723474244951,-754.81,0.00020821,3]
[334689057,1723474244960,-500.0,0.00020821,3]
[334689058,1723474244970,-151.0,0.00020821,2]
[334689059,1723474244980,-151.0,0.00020821,2]
[334689060,1723474244990,-1240.9,0.00020821,3]
[334689061,1723474245000,-151.0,0.00020821,2]
[334689062,1723474245010,-500.0,0.00020821,3]
[334689063,1723474245019,-506.28635247,0.00020821,3]
[334689064,1723474245029,-500.0,0.00020821,3]
[334689065,1723474245039,-500.0,0.00020821,3]
[334689066,1723474245049,-1135.649757,0.00020821,2]
[334689067,1723474245058,-1135.649757,0.00020821,2]
[334689068,1723474245068,-8315.05,0.00020821,3]
[334689069,1723474245077,-8315.05,0.00020821,3]
[334689070,1723474245087,-1135.649757,0.00020821,2]
[334689071,1723474245096,-500.0,0.00020821,3]
[334689072,1723474245106,-8315.05,0.00020821,3]
[334689073,1723474245116,-8315.05,0.00020821,3]
[334689074,1723474245125,-8315.05,0.00020821,3]
[334689075,1723474245135,-8315.05,0.00020821,3]
[334689076,1723474245145,-8315.05,0.00020821,3]
[334689077,1723474245154,-8315.05,0.00020821,3]
[334689078,1723474245163,-500.0,0.00020821,3]
[334689079,1723474245173,-8315.05,0.00020821,3]
[334689080,1723474245189,-8315.05,0.00020821,3]
[334689081,1723474245198,-8315.05,0.00020821,3]
[334689082,1723474245207,-8315.05,0.00020821,3]
[334689083,1723474245217,-8315.05,0.00020821,3]
[334689084,1723474245225,-6721.54105155,0.00020821,3]
[334689085,1723474245481,273.37336231,9.9e-05,2]
[334689091,1723474246052,1256.32432962,0.00012,2]
[334689093,1723474246149,-817.03180288,0.00018825,3]
[334689095,1723474246158,-422.01,0.00018845,2]
[334689096,1723474246168,-868.15820075,0.00020821,3]
[334689097,1723474246184,-725.3507477,0.00020821,3]
[334689098,1723474246193,-1135.649757,0.00020821,2]
[334689099,1723474246205,-90.07480102,0.00020821,3]
[334689100,1723474246218,-8224.97519898,0.00020821,3]
[334689101,1723474246229,-1135.649757,0.00020821,2]
[334689103,1723474246239,-488.10013778,0.00020821,3]
[334689108,1723474246485,37696.9944655,0.00013,2]
[334689109,1723474246529,290.89125154,0.00012,2]
[334689110,1723474246853,-1020.71977583,0.00019477,2]
[334689111,1723474246864,-247.86722417,0.00020821,3]
[334689112,1723474246944,8501.6692735,0.00015,2]
[334689113,1723474247695,1375.8064031,0.00012,2]
[334689114,1723474248531,55434.59759481,0.00012,2]
[334689115,1723474254534,228.043471,9.9e-05,2]
[334689116,1723474259044,580.8105876,0.00012,2]
[334689117,1723474272356,1211.24552353,0.00012,2]
[334689118,1723474272433,1039.19092018,0.00012,2]
[334689119,1723474277027,989.90003636,0.00012,2]
[334689121,1723474279693,165.71411466,0.00012,2]
[334689122,1723474285037,933.09765316,0.00012,2]
[334689123,1723474285489,8838.10257053,0.00012,2]
[334689124,1723474285979,3929.24394752,0.00012,2]
[334689125,1723474288071,209.43208315,0.00012,2]
[334689126,1723474288577,55434.59759481,0.00012,2]
[334689127,1723474294627,534.09000179,0.00012,2]
[334689128,1723474299943,2141.01768748,0.00012,2]
[334689129,1723474301081,414.33663194,0.00012,2]
[334689130,1723474308947,154.76012181,0.00015,2]
[334689131,1723474334022,1057.22504111,0.00014545,2]
[334689132,1723474341456,7960.81813609,0.00014545,2]
[334689133,1723474396437,154.76012181,0.00015,2]
[334689144,1723474474486,2208.64533816,0.00015,2]
[334689145,1723474482623,450.0,0.00025,60]
[334689146,1723474485959,296.06,0.00015,2]
[334689147,1723474629602,158.1227937,0.00014247,2]
[334689148,1723474735373,300.4513546,0.00014972,2]
[334689157,1723474959112,24900.0,0.00014795,2]
[334689159,1723475038987,593.25345905,0.00014964,2]
[334689161,1723475076176,1103.9,0.00027,120]
[334689164,1723475090647,3000.0,0.00014679,2]
[334689165,1723475097275,814.141021,0.00014681,2]
[334689167,1723475133836,642.8,0.00010959,2]
[334689168,1723475135090,196.281108,0.00014964,2]
[334689169,1723475163227,191.84164045,0.00014964,2]
[334689170,1723475182174,4412.3778788,0.00014648,2]
[334689171,1723475182770,1198.9560017,0.00014765,2]
[334689172,1723475191978,255.97228565,0.00014964,2]
[334689173,1723475218809,3600.84585955,0.00014964,2]
[334689174,1723475299251,250.0,0.00014792,2]
[334689175,1723475299503,250.0,0.00014833,2]
[334689176,1723475299886,250.0,0.00014873,2]
[334689177,1723475300108,250.0,0.00014914,2]
[334689178,1723475300340,250.0,0.00014955,2]
[334689179,1723475300611,250.0,0.00014995,2]
[334689180,1723475314664,253.36474018,0.00014964,2]
[334689181,1723475316402,183.373011,0.0001437,2]
[334689182,1723475316606,183.373011,0.00014405,2]
[334689183,1723475316858,183.373011,0.00014441,2]
[334689184,1723475331473,500.82771257,0.000251,59]
[334689185,1723475332654,154.79103211,0.000149,2]
[334689187,1723475361378,162.168076,0.00014247,2]
[334689240,1723475433598,-250.0,0.00015036,2]
[334689243,1723475433609,-300.0,0.00015064,2]
[334689246,1723475433619,-300.0,0.00015064,2]
[334689249,1723475433629,-609.5915333,0.00015065,2]
[334689251,1723475433638,-6445.5428144,0.00015065,2]
[334689253,1723475433648,-250.0,0.00015076,2]
[334689256,1723475433658,-250.0,0.00015117,2]
[334689258,1723475433673,-250.0,0.00015157,2]
[334689260,1723475433683,-250.0,0.00015198,2]
[334689262,1723475433693,-250.0,0.00015239,2]
[334689264,1723475433703,-250.0,0.00015279,2]
[334689265,1723475433713,-250.0,0.0001532,2]
[334689266,1723475433723,-250.0,0.0001536,2]
[334689267,1723475433733,-250.0,0.00015401,2]
[334689268,1723475433742,-250.0,0.00015441,2]
[334689269,1723475433752,-250.0,0.00015482,2]
[334689270,1723475433762,-250.0,0.00015523,2]
[334689271,1723475433772,-250.0,0.00015563,2]
[334689272,1723475433782,-4845.2710453,0.00015608,2]
[334689286,1723475438927,154.79103211,0.00015,2]
[334689297,1723475440587,-761.78904282,0.00015608,2]
[334689298,1723475440598,-731.86095723,0.00015643,2]
[334689313,1723475443665,-4963.70582163,0.00015643,2]
[334689314,1723475443859,-500.0,0.00015707,2]
[334689315,1723475443869,-417.38691697,0.00015707,2]
[334689316,1723475443880,-500.0,0.00015707,2]
[334689317,1723475443890,-500.0,0.00015707,2]
[334689318,1723475443900,-210.48813829,0.00015707,2]
[334689319,1723475443910,-637.54904445,0.00015707,2]
[334689320,1723475443923,-500.0,0.00015707,2]
[334689321,1723475443932,-500.0,0.00015707,2]
[334689322,1723475443941,-500.0,0.00015707,2]